bitfinex/quotes_ETHUSD_20210701
["timestamp","ask_amount","ask_price","bid_price","bid_amount"]
[1625143749733,14.88555051,2130.2,2128.6,2.0]
[1625143749832,3.52116,2129.9,2128.5,2.0]
[1625143749933,0.22047145,2129.7,2128.5,2.0]
[1625143750187,18.7996,2129.8,2128.5,2.0]
[1625143750188,0.17592771,2129.5,2128.5,2.0]
[1625143750286,7.04318,2129.1,2128.1,6.179]
[1625143750486,46.33996455,2129.0,2128.1,6.179]
[1625143750687,0.11901202,2128.9,2128.1,6.179]
[1625143751135,0.10789212,2128.9,2128.1,6.179]
[1625143751381,7.04443,2128.6,2128.1,6.179]
[1625143751681,4.25715611,2128.6,2128.1,6.179]
[1625143751984,0.17201279,2129.3,2128.1,6.179]
[1625143752181,0.12761743,2129.6,2128.1,6.179]
[1625143752280,0.12761743,2129.6,2128.1,9.2991]
[1625143752480,7.04169,2129.2,2128.1,16.34042]
[1625143753529,7.04089,2129.4,2128.1,16.34042]
[1625143754883,6.99089,2129.4,2128.1,16.34042]
[1625143755833,6.99089,2129.4,2128.1,9.2991]
[1625143761633,6.99089,2129.4,2128.1,16.34045]
[1625143764620,6.99089,2129.4,2128.3,4.0]
[1625143767288,6.99089,2129.4,2128.4,0.03412263]
[1625143774832,6.99089,2129.4,2128.4,7.07460263]
[1625143774932,11.73863,2129.7,2128.4,0.03412263]
[1625143775235,0.1,2129.6,2128.4,0.03412263]
[1625143775436,11.73863,2129.7,2128.4,0.03412263]
[1625143775981,7.04124,2129.3,2128.4,0.03412263]
[1625143777135,7.04124,2129.3,2128.5,7.04051]
[1625143779251,10.31934,2129.3,2128.4,0.03412263]
[1625143779497,0.06,2129.2,2128.4,0.03412263]
[1625143779799,6.79908,2129.3,2128.4,0.03412263]
[1625143780586,7.04195,2128.9,2128.4,0.03412263]
[1625143780733,9.38969,2129.1,2128.4,0.03412263]
[1625143780936,3.52098,2129.3,2128.4,0.03412263]
[1625143781033,9.38808,2129.4,2128.4,0.03412263]
[1625143781934,9.38808,2129.4,2128.4,7.07542263]
[1625143781935,7.0413,2129.0,2128.4,7.07542263]
[1625143782136,7.0413,2129.0,2128.5,3.5203864]
[1625143782338,7.0413,2129.0,2128.4,0.03412263]
[1625143782437,11.1782,2129.0,2128.4,0.03412263]
[1625143782734,0.14,2128.9,2128.4,0.03412263]
[1625143782985,7.04347,2128.7,2128.4,0.03412263]
[1625143785813,9.3913,2128.8,2128.4,0.03412263]
[1625143785965,10.81116,2129.1,2128.4,0.03412263]
[1625143786114,9.39106,2129.1,2128.4,0.03412263]
[1625143786365,7.04202,2128.9,2128.4,0.03412263]
[1625143786470,3.52106,2129.3,2128.4,3.20632263]
[1625143786569,13.87516,2129.7,2128.4,3.20632263]
[1625143786664,10.3541,2129.7,2128.5,0.08]
[1625143786766,10.3541,2129.7,2128.4,3.20632263]
[1625143787237,10.3541,2129.7,2128.4,6.72678933]
[1625143787339,7.0403,2129.4,2128.7,7.04029]
[1625143787489,9.38706,2129.6,2128.7,7.04029]
[1625143787640,10.5223,2129.8,2128.7,7.04029]
[1625143787740,10.5223,2129.8,2128.8,6.7105642]
[1625143788541,17.56105,2129.8,2128.9,9.3851]
[1625143788643,17.56105,2129.8,2128.8,6.7105642]
[1625143788740,17.56105,2129.8,2128.8,1.6953]
[1625143788842,17.56105,2129.8,2128.6,4.0]
[1625143789040,0.12,2129.7,2128.6,4.0]
[1625143789246,10.5223,2129.8,2128.6,4.0]
[1625143789744,7.04081,2129.2,2128.4,0.03412263]
[1625143789894,6.92341319,2129.2,2128.4,0.03412263]
[1625143792346,46.33996455,2129.1,2128.4,0.03412263]
[1625143792441,46.47996455,2129.1,2128.4,0.03412263]
[1625143792539,0.14,2129.1,2128.4,0.03412263]
[1625143793380,7.04351,2128.8,2128.4,0.03412263]
[1625143793631,10.2574,2129.7,2128.4,0.03412263]
[1625143794844,3.52112,2129.5,2128.4,0.03412263]
[1625143794956,7.04171,2129.0,2128.4,0.03412263]
[1625143798123,31.9619,2129.9,2128.4,8.04655359]
[1625143798211,3.52103,2129.7,2128.4,8.04655359]
[1625143798495,31.9619,2129.9,2128.4,8.04655359]
[1625143799853,14.04292,2129.8,2128.4,8.04655359]
[1625143800114,7.04108,2129.2,2128.4,8.04655359]
[1625143800210,9.3881,2129.4,2128.4,4.80382263]
[1625143801202,7.04148,2128.9,2128.4,4.80382263]
[1625143809407,0.012698,2128.6,2128.4,4.80382263]
[1625143809511,0.025396,2128.6,2128.4,4.80382263]
[1625143809758,7.067776,2128.6,2128.4,4.80382263]
[1625143809913,7.067776,2128.6,2128.4,0.03412263]
[1625143810025,12.090576,2128.6,2128.4,0.03412263]
[1625143810164,0.18,2128.5,2128.1,6.179]
[1625143810262,0.27140447,2128.5,2127.4,0.3057]
[1625143810517,8.1035,2128.2,2127.4,0.3057]
[1625143810612,0.12088843,2128.1,2127.4,0.3057]
[1625143810711,5.14028843,2128.1,2127.4,0.3057]
[1625143811268,7.0455,2127.8,2127.4,0.3057]
[1625143811665,53.38546455,2127.8,2127.4,0.3057]
[1625143812259,53.38546455,2127.8,2126.7,6.95]
[1625143812358,0.21399298,2127.7,2126.7,6.95]
[1625143812461,7.04869,2127.2,2126.7,6.95]
[1625143812558,11.28979,2127.2,2126.7,6.95]
[1625143813106,8.50087593,2127.2,2126.7,6.95]
[1625143813758,0.08,2127.1,2126.7,6.95]
[1625143814453,0.08,2127.1,2126.5,0.3481]
[1625143814704,0.012698,2126.8,2126.5,0.3481]
[1625143814906,0.025396,2126.8,2126.5,2.91671305]
[1625143815208,15.0,2128.2,2126.5,9.86671305]
[1625143815352,101.28276197,2128.0,2126.5,20.12311305]
[1625143815557,0.08,2127.9,2126.5,20.12311305]
[1625143815754,54.94279742,2128.0,2126.5,20.12311305]
[1625143816006,54.94279742,2128.0,2126.5,27.51736305]
[1625143816007,7.04625,2127.8,2126.5,27.51736305]
[1625143817508,7.04625,2127.8,2126.5,20.47111305]
[1625143818012,0.04,2127.7,2126.5,20.47111305]
[1625143818209,54.94279742,2128.0,2126.5,20.47111305]
[1625143818558,7.04712,2127.6,2126.5,27.51768305]
[1625143819355,54.94279742,2128.0,2126.5,27.51768305]
[1625143819456,43.2266,2128.0,2126.5,27.51768305]
[1625143819855,43.2266,2128.0,2126.5,20.47111305]
[1625143820155,43.2266,2128.0,2126.5,13.52111305]
[1625143820908,0.08,2127.9,2126.5,13.52111305]
[1625143821149,0.08,2127.9,2127.4,0.03414145]
[1625143821299,43.2266,2128.0,2127.4,0.03414145]
[1625143821400,7.04649,2127.7,2127.4,0.03414145]
[1625143823261,0.04,2127.6,2127.4,0.03414145]
[1625143823915,3.1201,2127.6,2127.4,0.03414145]
[1625143824914,10.16686,2127.6,2127.4,0.03414145]
[1625143825111,0.2,2127.5,2127.4,0.03414145]
[1625143827510,7.04676,2127.6,2127.4,0.03414145]
[1625143828178,7.04676,2127.6,2126.7,3.426]
[1625143828334,4.25799017,2127.6,2126.5,9.44371305]
[1625143828528,0.14,2127.5,2126.5,9.44371305]
[1625143828630,7.04844,2127.0,2126.5,9.44371305]
[1625143828930,2.86503642,2127.0,2126.5,9.44371305]
[1625143829286,59.26204455,2127.7,2126.5,9.44371305]
[1625143829884,7.04795,2127.3,2126.5,9.44371305]
[1625143830002,55.73771455,2127.7,2126.5,9.44371305]
[1625143830106,9.39775,2127.7,2126.5,9.44371305]
[1625143830555,0.08,2127.6,2126.5,9.44371305]
[1625143831205,9.39775,2127.7,2126.5,9.44371305]
[1625143831409,7.04813,2127.2,2126.5,9.44371305]
[1625143840467,7.04743,2127.5,2126.5,16.49114305]
[1625143840569,9.39775,2127.7,2126.5,20.48653118]
[1625143840715,9.39775,2127.7,2126.5,13.43910118]
[1625143840865,9.39775,2127.7,2126.5,13.43001305]
[1625143841065,9.39775,2127.7,2126.7,3.5233775]
[1625143841508,9.39775,2127.7,2126.7,6.09199055]
[1625143842109,7.04676,2127.5,2126.8,7.04676]
[1625143842512,7.04676,2127.5,2126.8,9.61537305]
[1625143843608,4.25825058,2127.5,2126.8,9.61537305]
[1625143843759,4.25825058,2127.5,2126.8,2.56861305]
[1625143845520,43.2266,2128.0,2126.8,2.56861305]
[1625143845614,21.8077,2128.0,2126.8,2.56861305]
[1625143845758,10.9726,2128.0,2126.8,2.56861305]
[1625143845861,7.04615,2127.8,2127.2,7.04566]
[1625143846060,7.04615,2127.8,2127.2,10.95346]
[1625143846308,7.04615,2127.8,2127.2,13.52207305]
[1625143846562,7.04615,2127.8,2127.2,6.47641305]
[1625143847516,9.39468,2128.0,2127.2,6.47641305]
[1625143847619,11.74621,2128.4,2127.2,6.48314953]
[1625143847715,11.74621,2128.4,2127.3,0.14]
[1625143847814,35.44416,2128.7,2127.3,0.14]
[1625143847916,31.9216,2128.7,2127.3,0.14]
[1625143848064,31.9216,2128.7,2127.4,2.56861305]
[1625143848163,31.9216,2128.7,2127.6,3.5218004]
[1625143848321,21.2671,2128.7,2127.6,4.83410548]
[1625143848514,21.2671,2128.7,2127.7,2.56861305]
[1625143848613,10.5515,2128.7,2127.7,5.76181305]
[1625143848879,10.5515,2128.7,2128.1,7.04252]
[1625143848966,17.87941,2128.9,2128.1,7.04252]
[1625143848967,7.04301,2128.9,2128.1,7.04252]
[1625143852011,7.04301,2128.9,2128.0,2.1849]
[1625143852116,11.76048385,2130.0,2128.2,2.56861305]
[1625143852117,7.04182,2129.9,2128.2,2.56861305]
[1625143852265,4.16057432,2130.4,2128.3,0.11478925]
[1625143852363,0.13756894,2130.7,2128.3,3.57768925]
[1625143852526,0.13756894,2130.7,2128.4,2.88743355]
[1625143852527,6.95,2130.7,2128.4,2.88743355]
[1625143852671,6.95,2130.7,2128.8,4.0]
[1625143852768,6.95,2130.7,2128.9,0.22690979]
[1625143852868,6.95,2130.7,2128.9,0.40203852]
[1625143852969,6.95,2130.7,2129.5,3.5179289]
[1625143853073,6.95,2130.7,2130.1,7.03539]
[1625143853170,6.95,2130.7,2130.1,11.7437275]
[1625143853267,6.95,2130.7,2130.1,11.74351114]
[1625143853557,10.8205,2131.3,2130.1,11.74351114]
[1625143853558,10.8205,2131.3,2130.2,6.90607022]
[1625143853659,10.8205,2131.3,2130.2,10.42312022]
[1625143853761,27.7596,2131.7,2130.3,0.05165932]
[1625143853910,17.14,2131.7,2130.5,3.53305968]
[1625143854313,17.14,2131.7,2131.1,11.39117]
[1625143854415,6.95,2131.7,2131.1,11.39117]
[1625143854514,0.02229213,2131.8,2131.2,0.18]
[1625143854665,0.02229213,2131.8,2131.2,3.08607022]
[1625143854959,0.02229213,2131.8,2131.2,0.15]
[1625143855315,0.02229213,2131.8,2131.5,7.03149]
[1625143856016,0.02229213,2131.8,2131.4,1.4854]
[1625143857161,0.02229213,2131.8,2131.1,4.5066]
[1625143857766,0.02229213,2131.8,2131.1,0.15]
[1625143857917,0.02229213,2131.8,2130.6,14.07715673]
[1625143857918,0.02229213,2131.8,2130.6,9.38061]
[1625143858014,0.02229213,2131.8,2130.6,9.53061]
[1625143858122,0.02229213,2131.8,2130.6,9.53727996]
[1625143858475,0.02229213,2131.8,2130.6,9.53061]
[1625143861239,0.02229213,2131.8,2130.6,11.94458605]
[1625143861515,0.02229213,2131.8,2130.6,11.95133335]
[1625143861616,0.02229213,2131.8,2130.6,11.94458605]
[1625143862066,0.02229213,2131.8,2131.2,7.03324]
[1625143862869,0.02229213,2131.8,2131.3,0.15]
[1625143862968,0.02229213,2131.8,2131.3,3.6933]
[1625143863069,0.02229213,2131.8,2131.5,9.03038]
[1625143863466,0.02229213,2131.8,2131.6,0.15]
[1625143863810,10.1389,2132.7,2131.6,0.15]
[1625143864010,10.1389,2132.7,2131.7,0.12]
[1625143864210,10.1389,2132.7,2131.7,0.15]
[1625143864767,10.1389,2132.7,2131.8,2.0]
[1625143864964,10.1389,2132.7,2131.6,2.0]
[1625143865065,13.9748,2132.7,2131.6,2.0]
[1625143865166,46.33996455,2132.6,2131.4,9.37365]
[1625143865365,0.09349144,2132.5,2131.4,9.37365]
[1625143865761,0.09349144,2132.5,2131.0,11.1574]
[1625143866012,0.09349144,2132.5,2131.0,0.15]
[1625143866119,0.06,2132.4,2130.9,10.3816]
[1625143866213,0.17912435,2132.3,2130.9,10.3816]
[1625143867166,7.21362435,2132.3,2130.9,10.3816]
[1625143867264,7.21362435,2132.3,2130.8,7.03416]
[1625143867519,7.21362435,2132.3,2130.9,0.03407718]
[1625143867616,0.17912435,2132.3,2130.9,0.03407718]
[1625143867718,0.19847042,2132.5,2130.9,0.03407718]
[1625143869041,1.08607042,2132.5,2130.9,0.03407718]
[1625143869245,0.14,2132.4,2130.9,0.03407718]
[1625143869349,0.16276295,2132.3,2130.9,0.03407718]
[1625143869800,8.37962617,2132.3,2130.2,11.87124]
[1625143869898,0.47201323,2132.1,2130.0,10.1156]
[1625143870094,46.33996455,2132.0,2130.0,10.1156]
[1625143870195,0.4777708,2131.8,2130.0,10.1156]
[1625143870349,0.08,2131.7,2130.0,10.1156]
[1625143870522,0.40734556,2131.6,2129.9,11.72209]
[1625143870722,0.39049862,2131.4,2129.9,11.72209]
[1625143870824,7.42782862,2131.4,2130.0,7.03693]
[1625143871321,7.42782862,2131.4,2129.8,11.0401]
[1625143871572,0.06,2131.3,2129.8,11.0401]
[1625143871671,0.31125219,2131.2,2129.8,11.0401]
[1625143871773,5.30295219,2131.2,2129.8,11.0401]
[1625143871871,46.33996455,2131.1,2129.6,10.6672]
[1625143871973,0.33124185,2131.0,2129.4,10.873]
[1625143872122,0.33804177,2131.0,2129.4,10.873]
[1625143872766,0.24358691,2130.8,2129.4,10.873]
[1625143873070,0.24358691,2130.8,2129.5,9.38385]
[1625143876012,0.24358691,2130.8,2129.3,9.38483]
[1625143876013,57.32522455,2130.7,2129.3,9.38483]
[1625143876115,15.0,2130.6,2129.3,9.38483]
[1625143876211,15.12,2130.6,2129.3,9.38483]
[1625143876412,15.0,2130.6,2129.3,9.38483]
[1625143877115,22.04008,2130.6,2129.3,9.38483]
[1625143877259,22.13354352,2130.6,2129.3,9.38483]
[1625143877762,7.04008,2130.6,2129.3,9.38483]
[1625143877911,22.13024212,2130.6,2129.3,9.38483]
[1625143878865,7.04008,2130.6,2129.3,9.38483]
[1625143879065,15.0,2130.5,2129.3,9.38483]
[1625143879166,22.04004,2130.5,2129.3,9.38483]
[1625143879518,22.10004,2130.5,2129.3,9.38483]
[1625143880764,22.10004,2130.5,2129.1,10.3047]
[1625143880863,0.11872133,2130.4,2129.1,10.3047]
[1625143881064,15.0,2130.5,2129.1,10.3047]
[1625143881362,15.0,2130.5,2129.0,10.7018]
[1625143881465,0.12757026,2130.4,2129.0,10.7018]
[1625143881669,13.64806026,2130.4,2129.1,7.04056]
[1625143881767,15.0,2130.3,2129.1,7.04056]
[1625143881918,0.15,2130.2,2129.0,10.7018]
[1625143882020,4.78658434,2130.2,2129.0,10.7018]
[1625143882116,19.78658434,2130.2,2128.6,0.51927168]
[1625143882218,19.64658434,2130.2,2128.6,0.51927168]
[1625143882666,65.98654889,2130.2,2128.6,0.51927168]
[1625143882818,73.02715889,2130.2,2129.0,7.04088]
[1625143882917,73.02715889,2130.2,2128.6,0.51927168]
[1625143883119,73.02715889,2130.2,2128.5,20.9935]
[1625143884019,73.02715889,2130.2,2129.1,7.0405]
[1625143884120,72.83907455,2130.2,2129.1,7.0405]
[1625143884219,57.83907455,2130.2,2129.1,7.0405]
[1625143884921,72.83907455,2130.2,2129.1,7.0405]
[1625143885025,72.89907455,2130.2,2129.1,7.0405]
[1625143885221,72.83907455,2130.2,2129.1,7.0405]
[1625143885525,72.82249807,2130.2,2129.1,7.0405]
[1625143885974,72.82249807,2130.2,2128.9,7.04124]
[1625143888364,72.68907455,2130.2,2128.9,7.04124]
[1625143888510,57.68907455,2130.2,2128.9,7.04124]
[1625143889258,0.08,2130.1,2128.9,7.04124]
[1625143889408,53.38057455,2130.2,2128.9,7.04124]
[1625143890259,68.38057455,2130.2,2128.9,7.04124]
[1625143890359,53.38057455,2130.2,2128.9,7.04124]
[1625143891366,15.0,2130.1,2128.9,7.04124]
[1625143891465,22.04094,2130.1,2128.9,7.04124]
[1625143893237,7.04157,2129.9,2128.9,7.04124]
[1625143893842,61.33996455,2130.0,2128.5,20.9935]
[1625143894037,0.14847178,2129.9,2128.5,20.9935]
[1625143894341,7.19004178,2129.9,2128.9,7.04124]
[1625143894439,22.04157,2129.9,2128.9,7.04124]
[1625143894740,0.12,2129.8,2128.9,7.04124]
[1625143895267,15.15,2129.9,2128.9,7.04124]
[1625143895518,15.15,2129.9,2128.7,11.72834]
[1625143895519,7.04198,2129.7,2128.7,11.72834]
[1625143895669,7.04198,2129.7,2128.6,7.04198]
[1625143895770,7.04198,2129.7,2128.5,20.9935]
[1625143896168,7.04198,2129.7,2128.5,10.4242]
[1625143896269,7.14516012,2129.7,2128.5,10.4242]
[1625143896570,10.66635012,2129.7,2128.5,10.4242]
[1625143896672,7.04224,2129.4,2128.5,19.81351]
[1625143896773,7.04224,2129.4,2128.5,9.38931]
[1625143897666,7.04224,2129.4,2128.4,2.41397605]
[1625143897667,7.04303,2129.2,2128.4,2.41397605]
[1625143897772,7.04303,2129.2,2127.9,21.057]
[1625143897773,15.0,2129.2,2127.9,21.057]
[1625143897863,0.26688074,2129.1,2127.9,10.8289]
[1625143897964,56.80684529,2129.1,2127.5,10.5083]
[1625143898119,3.52297,2128.7,2127.5,10.5083]
[1625143898229,15.12495974,2128.6,2127.5,10.5083]
[1625143898311,65.67832429,2128.6,2127.4,9.9906]
[1625143898720,4.33835974,2128.6,2127.4,9.9906]
[1625143898815,3.52332,2128.6,2127.3,0.02229762]
[1625143898915,12.91537,2128.9,2127.3,0.02229762]
[1625143899015,21.1287,2129.2,2127.8,2.41867772]
[1625143899210,21.1287,2129.2,2127.8,6.90097772]
[1625143899614,24.65062,2129.2,2127.8,6.90097772]
[1625143899771,3.52176,2129.0,2127.8,6.90097772]
[1625143899872,3.52176,2129.0,2127.8,13.94357772]
[1625143900220,2.02176,2129.0,2127.8,13.94357772]
[1625143902139,7.04298,2128.9,2127.8,13.94357772]
[1625143902645,1.00468,2129.3,2127.9,0.15]
[1625143902844,1.00468,2129.3,2128.0,0.18]
[1625143902999,1.00468,2129.3,2128.0,2.59867772]
[1625143903093,1.00468,2129.3,2128.1,0.15]
[1625143903496,1.00468,2129.3,2128.2,9.3881]
[1625143903593,1.00468,2129.3,2128.5,1.4141]
[1625143903694,1.00468,2129.3,2128.5,5.4225]
[1625143903794,7.04107,2129.4,2128.5,5.4225]
[1625143903943,7.04107,2129.4,2128.5,5.5725]
[1625143904574,3.52095,2129.4,2128.5,5.5725]
[1625143904721,3.52095,2129.4,2128.5,4.1584]
[1625143904822,46.39996455,2129.3,2128.5,3.0423]
[1625143904921,46.39996455,2129.3,2127.8,10.4888]
[1625143904922,61.39996455,2129.3,2127.8,10.4888]
[1625143905019,3.52238,2128.7,2127.8,10.4888]
[1625143905128,3.52238,2128.7,2127.4,10.0439]
[1625143905321,3.52238,2128.7,2127.5,2.0]
[1625143905525,7.04506,2128.2,2127.5,2.0]
[1625143905622,10.90736,2128.2,2127.5,2.0]
[1625143906074,8.1199124,2128.2,2127.5,2.0]
[1625143906171,8.1199124,2128.2,2127.3,0.02229762]
[1625143907015,4.2576124,2128.2,2127.3,0.02229762]
[1625143907417,8.3589124,2128.2,2127.3,0.02229762]
[1625143908429,3.5233,2127.9,2127.3,0.02229762]
[1625143909427,7.0471,2127.6,2127.3,0.02229762]
[1625143909525,10.57078,2127.6,2127.3,0.02229762]
[1625143910025,10.42577689,2127.6,2127.3,0.02229762]
[1625143913282,9.39614,2127.7,2127.3,0.02229762]
[1625143913382,12.919477,2128.1,2127.3,0.02229762]
[1625143913842,3.52359,2127.9,2127.3,0.02229762]
[1625143914147,7.04709,2127.6,2127.3,0.02229762]
[1625143914795,12.9192,2127.9,2127.3,0.02229762]
[1625143914896,9.39561,2127.9,2127.3,0.02229762]
[1625143915097,7.0455,2128.0,2127.3,0.02229762]
[1625143918700,10.56888,2128.0,2127.3,0.02229762]
[1625143918798,1.4518,2128.0,2127.3,0.02229762]
[1625143919853,3.52376,2127.8,2127.3,0.02229762]
[1625143920024,7.04699,2127.6,2127.3,0.02229762]
[1625143920978,10.10829,2127.6,2127.3,0.02229762]
[1625143921429,7.3198539,2127.6,2127.3,0.02229762]
[1625143921696,4.2585539,2127.6,2127.3,0.02229762]
[1625143921787,62.78406455,2127.8,2127.3,0.02229762]
[1625143921882,3.52376,2127.8,2127.3,4.67079762]
[1625143922525,10.56997,2127.8,2127.3,4.67079762]
[1625143922624,7.04621,2127.8,2127.3,4.67079762]
[1625143924624,10.56895,2128.1,2127.3,4.67079762]
[1625143924828,10.0278,2128.2,2127.3,4.67079762]
[1625143924926,10.0278,2128.2,2127.3,7.08386247]
[1625143925076,20.3578,2129.0,2127.4,0.03443829]
[1625143925175,34.1154135,2129.0,2127.4,0.03443829]
[1625143925279,3.52195,2128.9,2127.4,0.03443829]
[1625143925377,3.52195,2128.9,2127.5,2.41306485]
[1625143925378,11.7442,2128.8,2127.5,2.41306485]
[1625143925476,11.7442,2128.8,2127.5,2.42078756]
[1625143925574,7.04375,2128.9,2127.5,2.42078756]
[1625143925675,7.04375,2128.9,2127.6,0.0398082]
[1625143926079,7.04325,2128.7,2127.9,7.04307]
[1625143926175,7.04325,2128.7,2127.9,3.0907]
[1625143927031,3.52223,2128.6,2127.9,3.0907]
[1625143927129,7.0448,2128.3,2127.9,3.0907]
[1625143927278,7.0448,2128.3,2127.5,0.15]
[1625143927279,7.03375381,2128.3,2127.5,0.15]
[1625143927580,3.52223,2128.6,2127.5,0.15]
[1625143927928,3.52223,2128.6,2127.5,2.71185643]
[1625143928031,3.52223,2128.6,2127.5,7.30455643]
[1625143928231,9.39132,2128.8,2127.5,7.30455643]
[1625143929149,7.04397,2128.5,2127.5,14.34875643]
[1625143929449,7.04397,2128.5,2127.5,7.30455643]
[1625143930804,41.5259,2129.0,2127.5,7.30455643]
[1625143930953,45.0479135,2129.0,2127.5,14.34894643]
[1625143931922,3.52253,2128.6,2127.5,14.34894643]
[1625143932274,3.50590346,2128.6,2127.5,14.34894643]
[1625143933124,7.04438,2128.4,2127.5,14.34894643]
[1625143933972,7.04438,2128.4,2127.5,14.38308203]
[1625143934072,3.50590346,2128.6,2127.5,14.38308203]
[1625143934525,7.04364,2128.6,2127.5,14.38308203]
[1625143934822,7.04364,2128.6,2127.6,0.1]
[1625143934975,3.52223,2128.7,2127.7,0.15]
[1625143935075,38.3339235,2129.0,2127.7,2.71185643]
[1625143935173,3.52223,2128.7,2127.7,2.71185643]
[1625143935577,3.52223,2128.7,2128.0,7.04264]
[1625143935877,3.52223,2128.7,2128.0,9.60449643]
[1625143936831,10.56528,2128.7,2128.0,9.60449643]
[1625143936930,10.56528,2128.7,2128.0,2.56185643]
[1625143939334,10.56528,2128.7,2128.0,2.59598537]
[1625143939682,14.0874,2128.7,2128.0,2.59598537]
[1625143941119,19.1901,2128.7,2128.0,2.59598537]
[1625143941220,19.1901,2128.7,2128.0,0.03412894]
[1625143941875,46.33996455,2128.6,2128.0,0.03412894]
[1625143942027,25.0,2128.5,2128.0,0.03412894]
[1625143942123,71.33996455,2128.5,2128.0,0.03412894]
[1625143942423,0.2,2128.4,2128.0,0.03412894]
[1625143942735,13.5239706,2128.3,2128.0,0.03412894]
[1625143942832,28.6739706,2128.3,2128.0,0.03412894]
[1625143942982,7.04795,2128.2,2128.0,0.03412894]
[1625143943082,0.15,2128.1,2128.0,0.03412894]
[1625143943185,0.35,2128.1,2128.0,0.03412894]
[1625143943883,0.15,2128.1,2128.0,0.03412894]
[1625143944430,0.15,2128.1,2127.3,0.02229762]
[1625143944534,3.52339,2127.9,2127.3,0.02229762]
[1625143945514,7.04766,2127.6,2127.3,0.02229762]
[1625143945709,0.08,2127.5,2127.3,0.02229762]
[1625143945860,3.60411,2127.5,2127.3,0.02229762]
[1625143946112,3.52411,2127.5,2127.3,0.02229762]
[1625143946260,3.44411,2127.5,2127.3,0.02229762]
[1625143946420,9.39688,2127.7,2127.3,0.02229762]
[1625143946714,7.04821,2127.4,2127.3,0.02229762]
[1625143959756,11.78361,2127.4,2127.3,0.02229762]
[1625143959868,11.94361,2127.4,2127.0,0.445932]
[1625143960006,0.09556062,2127.3,2127.0,0.445932]
[1625143960105,26.94361,2127.4,2127.0,0.445932]
[1625143960207,0.12,2127.3,2127.0,0.445932]
[1625143960545,3.5252485,2127.1,2127.0,0.445932]
[1625143960732,3.5252485,2127.1,2126.6,0.0222991]
[1625143960832,3.5252485,2127.1,2126.5,0.6961]
[1625143960833,46.33996455,2127.0,2126.5,0.6961]
[1625143960986,46.33996455,2127.0,2125.2,10.81230999]
[1625143960987,46.33996455,2127.0,2126.3,0.02229916]
[1625143960988,0.38980865,2126.8,2126.3,0.02229916]
[1625143961083,0.53980865,2126.8,2126.3,0.02229916]
[1625143961334,0.2,2126.7,2126.3,0.02229916]
[1625143961483,3.7261588,2126.7,2126.3,0.02229916]
[1625143961681,0.2,2126.7,2126.3,0.02229916]
[1625143961884,3.52573,2127.0,2126.3,0.02229916]
[1625143961986,0.15,2127.1,2126.3,0.02229916]
[1625143962088,3.6752079,2127.1,2126.3,0.02229916]
[1625143962185,7.05248,2126.6,2125.8,2.37144559]
[1625143962685,4.26294657,2126.6,2125.8,2.37144559]
[1625143962982,9.4033,2126.7,2125.8,2.37144559]
[1625143963087,3.5252079,2127.1,2125.8,6.73424559]
[1625143963184,32.74345,2127.2,2125.8,6.73424559]
[1625143963341,32.74345,2127.2,2125.9,0.06]
[1625143963432,32.74345,2127.2,2125.8,6.73424559]
[1625143963784,32.74345,2127.2,2126.0,2.39683803]
[1625143964033,21.73785,2127.2,2126.0,2.39683803]
[1625143964237,11.75315,2127.2,2126.0,2.39683803]
[1625143964387,10.6394,2127.5,2126.0,9.45386906]
[1625143964536,10.6394,2127.5,2126.1,0.1]
[1625143964632,10.6394,2127.5,2126.1,0.25]
[1625143964787,10.6394,2127.5,2126.2,2.39683803]
[1625143965043,10.6394,2127.5,2126.2,2.84193803]
[1625143965348,17.68653,2127.5,2126.2,9.88981803]
[1625143965443,17.68653,2127.5,2126.2,2.84193803]
[1625143965796,7.04713,2127.5,2126.2,2.84193803]
[1625143965906,10.1537,2127.7,2126.3,3.70622478]
[1625143966050,10.1537,2127.7,2126.3,4.77582478]
[1625143966148,10.1537,2127.7,2126.4,2.3260047]
[1625143966245,10.1537,2127.7,2126.4,2.4060047]
[1625143966344,10.1537,2127.7,2126.5,0.15]
[1625143966502,17.20021,2127.7,2126.5,9.54485]
[1625143966597,17.20021,2127.7,2126.7,1.2206]
[1625143966798,17.20021,2127.7,2126.7,1.3706]
[1625143966952,7.04651,2127.7,2126.7,0.15]
[1625143967947,7.04651,2127.7,2126.3,4.5183]
[1625143968045,10.1098,2127.8,2126.3,4.5183]
[1625143968145,0.2,2127.6,2126.3,4.5183]
[1625143968347,10.1098,2127.8,2126.3,4.5183]
[1625143968444,10.1098,2127.8,2126.3,3.5487]
[1625143968544,25.1098,2127.8,2126.3,3.5487]
[1625143968644,10.1098,2127.8,2126.3,3.5487]
[1625143968748,10.1098,2127.8,2126.4,0.15]
[1625143969095,10.1098,2127.8,2126.5,2.3260047]
[1625143969297,7.04723,2127.5,2126.5,9.3728447]
[1625143969395,7.04723,2127.5,2126.6,0.15]
[1625143969641,7.04723,2127.5,2126.7,2.3260047]
[1625143970092,7.04723,2127.5,2126.8,0.06]
[1625143970194,7.04723,2127.5,2126.8,4.7483]
[1625143970494,7.04723,2127.5,2126.9,2.3260047]
[1625143971789,7.04723,2127.5,2126.7,1.3999]
[1625143971885,7.04723,2127.5,2126.3,4.5101]
[1625143971986,7.04723,2127.5,2126.3,3.5487]
[1625143972086,7.04723,2127.5,2126.2,1.2951]
[1625143972190,7.04723,2127.5,2126.1,2.3260047]
[1625143972387,7.04723,2127.5,2126.2,2.3260047]
[1625143973291,7.04723,2127.5,2126.3,0.15]
[1625143973391,7.04723,2127.5,2126.3,4.0113]
[1625143973593,7.04723,2127.5,2126.4,2.3260047]
[1625143973899,7.04723,2127.5,2126.5,0.08]
[1625143974253,7.04723,2127.5,2126.6,2.3260047]
[1625143975808,7.04723,2127.5,2126.3,5.1058]
[1625143975906,7.03610271,2127.5,2126.3,3.7013]